bitfinex/quotes_SOLUSD_20250126
["timestamp","ask_amount","ask_price","bid_price","bid_amount"]
[1737911476088,0.063,256.36,256.35,44.776884]
[1737911476289,0.063,256.36,256.35,45.1667745]
[1737911476497,0.063,256.36,256.35,46.1667745]
[1737911476696,0.0001,256.36,256.35,46.1667745]
[1737911476894,0.063,256.4,256.39,45.776884]
[1737911477098,0.063,256.4,256.39,46.16671715]
[1737911477281,0.063,256.51,256.44,3.0]
[1737911477487,24.39740433,256.72,256.58,2.0]
[1737911477692,9.03591286,256.7,256.56,2.0]
[1737911477899,9.03591286,256.7,256.58,31.0]
[1737911478094,5.14031286,256.7,256.58,59.674284]
[1737911478294,24.39740433,256.72,256.58,59.674284]
[1737911478806,24.39740433,256.72,256.58,30.0638576]
[1737911479506,24.39740433,256.72,256.63,1.0]
[1737911479708,53.93512153,256.71,256.61,20.0]
[1737911480009,5.14031286,256.67,256.58,1.0]
[1737911481908,5.14031286,256.65,256.58,1.0]
[1737911482526,11.51731286,256.67,256.56,2.0]
[1737911482895,5.14031286,256.65,256.56,1.0]
[1737911483632,5.14031286,256.65,256.56,2.0]
[1737911484622,9.03671286,256.65,256.56,2.0]
[1737911484914,9.03671286,256.65,256.56,1.0]
[1737911485891,5.14031286,256.61,256.56,1.0]
[1737911486099,5.14031286,256.59,256.52,1.0]
[1737911486306,5.14031286,256.57,256.49,1.0]
[1737911487515,3.8977,256.56,256.49,1.0]
[1737911489015,5.14031286,256.55,256.49,1.0]
[1737911489400,5.14031286,256.55,256.51,1.0]
[1737911491314,5.14031286,256.57,256.51,1.0]
[1737911491890,5.14031286,256.59,256.56,1.0]
[1737911492113,3.8971,256.6,256.58,1.0]
[1737911492318,3.8971,256.6,256.55,1.0]
[1737911492533,9.03741286,256.6,256.53,1.0]
[1737911493006,0.03,256.56,256.53,1.0]
[1737911493521,5.14031286,256.55,256.51,1.0]
[1737911495004,3.9277,256.56,256.51,1.0]
[1737911496316,5.14031286,256.55,256.51,1.0]
[1737911496517,5.14031286,256.55,256.49,1.0]
[1737911496928,3.898,256.54,256.49,1.0]
[1737911502944,3.898,256.54,256.51,1.0]
[1737911504323,3.9278,256.56,256.51,1.0]
[1737911504530,0.03,256.56,256.53,1.0]
[1737911506744,0.03,256.56,256.51,1.0]
[1737911506943,5.14031286,256.53,256.47,1.0]
[1737911507249,5.14031286,256.5,256.47,1.0]
[1737911508142,3.8987,256.49,256.47,1.0]
[1737911510540,3.8987,256.49,256.45,1.0]
[1737911511250,5.14031286,256.47,256.45,1.0]
[1737911511947,3.8987,256.49,256.45,1.0]
[1737911514048,3.8987,256.49,256.47,1.0]
[1737911517133,3.8986,256.5,256.47,1.0]
[1737911517524,3.8986,256.5,256.47,1.063]
[1737911519450,3.8986,256.5,256.47,0.063]
[1737911520249,5.14031286,256.49,256.47,0.063]
[1737911521640,3.8989,256.48,256.47,0.063]
[1737911523362,5.14031286,256.49,256.47,0.063]
[1737911524152,9.03901286,256.49,256.47,0.063]
[1737911524348,9.03881286,256.51,256.47,0.063]
[1737911525454,5.14031286,256.49,256.47,0.063]
[1737911526548,5.14031286,256.49,256.47,1.063]
[1737911526927,3.8986,256.5,256.47,1.063]
[1737911531658,9.03881286,256.51,256.48,1.0]
[1737911534154,5.14031286,256.53,256.48,1.0]
[1737911535138,9.03851286,256.53,256.48,1.0]
[1737911537153,5.14031286,256.51,256.48,1.0]
[1737911537534,5.14031286,256.51,256.49,1.0]
[1737911538140,5.14031286,256.51,256.47,0.063]
[1737911538445,5.14031286,256.49,256.47,0.063]
[1737911539554,3.8989,256.48,256.47,0.063]
[1737911550665,5.14031286,256.51,256.48,1.0]
[1737911550967,5.14031286,256.53,256.48,1.0]
[1737911551186,5.14031286,256.53,256.49,1.0]
[1737911551357,5.14031286,256.53,256.47,1.063]
[1737911551558,5.14031286,256.53,256.47,2.063]
[1737911551946,5.14031286,256.53,256.49,1.0]
[1737911552970,9.03841286,256.53,256.49,1.0]
[1737911555252,9.03821286,256.55,256.5,1.0]
[1737911555466,9.03821286,256.55,256.5,2.0]
[1737911556367,5.14031286,256.53,256.5,2.0]
[1737911556668,5.14031286,256.53,256.5,1.0]
[1737911556850,5.14031286,256.53,256.5,2.0]
[1737911557848,5.14031286,256.55,256.52,1.0]
[1737911558882,9.03811286,256.55,256.52,1.0]
[1737911559946,9.03811286,256.55,256.5,2.0]
[1737911560768,5.14031286,256.53,256.48,2.0]
[1737911560951,5.14031286,256.53,256.48,1.0]
[1737911562879,3.8983,256.52,256.48,1.0]
[1737911563175,3.8983,256.52,256.48,2.0]
[1737911563354,3.8983,256.52,256.49,0.063]
[1737911565872,5.14031286,256.51,256.49,0.063]
[1737911567853,3.8986,256.5,256.49,0.063]
[1737911569680,5.14031286,256.51,256.49,1.063]
[1737911570374,5.14031286,256.51,256.49,0.063]
[1737911570751,9.03881286,256.51,256.49,0.063]
[1737911576573,5.14031286,256.51,256.49,0.063]
[1737911576777,5.14031286,256.53,256.5,2.0]
[1737911581482,5.14031286,256.53,256.5,1.0]
[1737911582084,5.14031286,256.53,256.5,2.0]
[1737911582282,5.14031286,256.55,256.52,1.0]
[1737911582602,0.03,256.56,256.54,1.0]
[1737911582891,5.14031286,256.55,256.54,1.0]
[1737911583194,5.14031286,256.55,256.49,0.063]
[1737911583395,5.14031286,256.51,256.49,0.063]
[1737911583758,5.14031286,256.51,256.5,1.0]
[1737911583964,5.14031286,256.51,256.5,2.0]
[1737911584388,5.14031286,256.51,256.49,0.063]
[1737911587296,5.14031286,256.53,256.5,2.0]
[1737911587679,5.14031286,256.53,256.52,1.0]
[1737911590883,5.14031286,256.53,256.5,2.0]
[1737911591083,5.14031286,256.53,256.52,1.0]
[1737911591801,5.14031286,256.55,256.53,1.0]
[1737911592589,5.14031286,256.55,256.54,1.0]
[1737911593477,0.03,256.56,256.55,1.0]
[1737911593698,0.03,256.56,256.54,1.0]
[1737911593879,5.14031286,256.55,256.54,1.0]
[1737911595012,9.03811286,256.55,256.51,2.0]
[1737911595296,9.03811286,256.55,256.53,1.0]
[1737911595675,9.03811286,256.55,256.54,1.0]
[1737911596103,0.03,256.56,256.55,1.0]
[1737911596286,0.03,256.56,256.55,21.0]
[1737911596992,0.03,256.56,256.55,49.06439422]
[1737911604293,0.03,256.6,256.59,45.776884]
[1737911604498,0.03,256.6,256.59,46.16648475]
[1737911605479,0.03,256.6,256.59,49.674084]
[1737911614711,0.03,256.6,256.59,25.8972]
[1737911615019,0.03,256.6,256.59,2.0]
[1737911618104,0.03,256.6,256.59,25.776884]
[1737911632939,0.03,256.6,256.59,29.674084]
[1737911636124,0.03,256.6,256.59,5.8972]
[1737911636631,0.03,256.6,256.59,29.674084]
[1737911637728,0.03,256.6,256.59,5.8972]
[1737911638930,0.03,256.6,256.59,29.674084]
[1737911641446,0.03,256.6,256.59,5.8972]
[1737911643849,0.03,256.6,256.59,2.0]
[1737911657139,0.03,256.6,256.59,25.776884]
[1737911658362,0.03,256.6,256.59,2.0]
[1737911673149,0.03,256.6,256.59,1.0]
[1737911675174,0.03,256.6,256.59,2.0]
[1737911676592,0.03,256.6,256.59,1.0]
[1737911677773,0.03,256.6,256.59,2.0]
[1737911683259,0.03,256.6,256.59,1.0]
[1737911687276,0.03,256.6,256.59,2.0]
[1737911688183,0.03,256.6,256.59,1.0]
[1737911690384,0.03,256.6,256.57,1.0]
[1737911690687,5.14031286,256.59,256.57,1.0]
[1737911694401,9.03771286,256.59,256.57,1.0]
[1737911695272,9.03771286,256.59,256.56,0.063]
[1737911695476,9.03771286,256.59,256.57,1.0]
[1737911696964,21.5277,256.56,256.55,0.063]
[1737911697200,21.5277,256.56,256.42,1.0]
[1737911697201,20.0,256.52,256.42,1.0]
[1737911697497,5.14031286,256.5,256.44,2.0]
[1737911698484,5.14031286,256.5,256.44,1.0]
[1737911699075,5.14031286,256.5,256.4,1.0]
[1737911699275,20.0,256.48,256.38,0.03]
[1737911699589,32.06752948,256.48,256.47,0.0001]
[1737911700399,20.0,256.44,256.38,0.03]
[1737911700611,5.14031286,256.39,256.38,0.03]
[1737911703472,5.14031286,256.39,256.38,1.03]
[1737911706295,5.14031286,256.39,256.38,0.03]
[1737911709992,10.53982948,256.39,256.38,0.03]
[1737911710502,12.05432948,256.39,256.38,0.03]
[1737911710893,20.0,256.36,256.32,0.03]
[1737911711094,5.14031286,256.33,256.32,0.03]
[1737911712415,9.04151286,256.33,256.32,0.03]
[1737911712913,14.18182572,256.33,256.32,0.03]
[1737911713082,14.18182572,256.33,256.3,0.063]
[1737911713083,25.14031286,256.31,256.3,0.063]
[1737911713285,30.53982948,256.31,256.3,0.063]
[1737911714305,34.44132948,256.31,256.3,0.063]
[1737911715215,58.21821348,256.31,256.29,0.063]
[1737911715523,6.91401662,256.3,256.29,0.063]
[1737911717703,5.39951662,256.3,256.29,0.063]
[1737911720313,20.0,256.28,256.27,0.03]
[1737911720609,30.53982948,256.28,256.27,0.03]
[1737911721420,20.0,256.24,256.23,0.063]
[1737911721731,5.39951662,256.23,256.21,0.063]
[1737911721926,5.14031286,256.22,256.21,0.063]
[1737911722223,20.0,256.19,256.18,0.03]
[1737911722414,9.30281662,256.19,256.18,0.03]
[1737911722614,14.44312948,256.19,256.18,0.03]
[1737911723600,38.22001348,256.19,256.18,0.03]
[1737911724111,20.0,256.15,256.12,0.063]
[1737911724288,5.14031286,256.14,256.12,0.063]
[1737911734740,15.68014234,256.14,256.12,0.063]
[1737911736029,10.53982948,256.14,256.12,0.063]
[1737911737737,10.53982948,256.14,256.12,1.063]
[1737911739241,5.39951662,256.14,256.12,1.063]
[1737911740046,14.44392948,256.14,256.12,0.063]
[1737911747128,30.0,256.25,256.12,0.063]
[1737911747129,5.14031286,256.26,256.25,1.0]
[1737911747334,20.0,256.26,256.23,1.0]
[1737911747633,5.14031286,256.28,256.25,1.0]
[1737911748042,5.14031286,256.26,256.24,1.0]
[1737911748250,5.14031286,256.26,256.23,1.0]
[1737911748550,5.14031286,256.26,256.24,1.0]
[1737911753253,9.04261286,256.26,256.24,1.0]
[1737911753557,5.14031286,256.26,256.24,1.0]
[1737911754656,9.04261286,256.26,256.2,1.0]
[1737911754955,5.14031286,256.21,256.18,1.0]
[1737911755149,5.14031286,256.19,256.18,1.0]
[1737911755348,5.14031286,256.19,256.17,1.0]
[1737911756957,5.14031286,256.19,256.18,1.0]
[1737911758446,5.14031286,256.19,256.18,1.063]
[1737911761348,5.14031286,256.21,256.18,1.063]
[1737911761655,5.14031286,256.21,256.19,1.0]
[1737911761858,5.14031286,256.23,256.22,1.0]
[1737911762039,0.03,256.28,256.24,1.0]
[1737911762040,5.14031286,256.25,256.24,1.0]
[1737911763064,5.14031286,256.25,256.23,1.0]
[1737911763562,5.14031286,256.25,256.24,1.0]
[1737911764965,5.14031286,256.27,256.24,1.0]
[1737911765458,5.14031286,256.27,256.26,1.0]
[1737911765761,0.03,256.28,256.27,1.0]
[1737911768367,0.03,256.28,256.27,216.4]
[1737911770263,0.03,256.28,256.27,240.176884]
[1737911770875,0.03,256.28,256.27,216.4]
[1737911773472,0.03,256.28,256.27,240.176884]
[1737911781399,5.14031286,256.45,256.41,2.0]
[1737911781567,5.14031286,256.43,256.41,1.0]
[1737911781894,5.14031286,256.43,256.39,2.0]
[1737911783391,9.04011286,256.43,256.39,2.0]
[1737911786403,5.14031286,256.41,256.39,2.0]
[1737911787196,5.14031286,256.41,256.39,1.0]
[1737911787699,20.0,256.38,256.31,1.0]
[1737911787995,5.14031286,256.32,256.31,1.0]
[1737911789698,9.04171286,256.32,256.28,1.0]
[1737911789889,5.14031286,256.3,256.28,1.0]
[1737911792211,5.14031286,256.32,256.28,1.0]
[1737911792414,5.14031286,256.32,256.31,1.0]
[1737911792916,6.2344,256.39,256.26,3.9022]
[1737911792917,5.14031286,256.34,256.33,2.0]
[1737911793133,5.14031286,256.36,256.33,2.0]
[1737911793610,5.14031286,256.36,256.35,1.0]
[1737911793816,5.14031286,256.38,256.37,1.0]
[1737911794016,5.14031286,256.4,256.39,1.0]
[1737911794186,5.14031286,256.42,256.39,1.0]
[1737911794716,5.14031286,256.4,256.37,2.0]
[1737911795913,5.14031286,256.38,256.37,1.0]
[1737911796095,5.14031286,256.38,256.36,1.0]
[1737911796298,5.14031286,256.38,256.36,2.0]
[1737911798412,0.03,256.44,256.38,2.0]
[1737911798413,5.14031286,256.4,256.38,2.0]
[1737911800801,5.14031286,256.4,256.38,1.0]
[1737911801218,5.14031286,256.4,256.36,1.0]
[1737911801422,5.14031286,256.37,256.35,1.0]
[1737911801610,5.14031286,256.37,256.33,1.0]
[1737911801812,5.14031286,256.35,256.33,1.0]
[1737911802208,5.14031286,256.35,256.34,1.0]
[1737911802699,5.14031286,256.35,256.33,1.0]
[1737911802919,9.04121286,256.35,256.33,1.0]
[1737911803230,9.04121286,256.35,256.34,1.0]
[1737911803231,5.14031286,256.35,256.34,1.0]
[1737911805251,5.14031286,256.35,256.33,1.0]
[1737911805526,5.14031286,256.35,256.3,0.063]
[1737911805527,9.04121286,256.35,256.3,0.063]
[1737911805730,5.14031286,256.31,256.3,0.063]
[1737911807137,9.04181286,256.31,256.3,0.063]
[1737911819037,5.14031286,256.31,256.3,0.063]
[1737911819236,0.03,256.31,256.3,2.063]
[1737911826242,0.03,256.31,256.3,5.9646]
[1737911828847,0.03,256.31,256.3,29.741484]
[1737911829845,0.03,256.31,256.3,251.384284]
[1737911832154,0.03,256.31,256.3,217.463]
[1737911834451,0.03,256.31,256.3,248.997384]
[1737911838455,0.03,256.35,256.34,21.0]
[1737911838760,0.03,256.35,256.34,21.38996124]
[1737911838941,0.03,256.35,256.34,22.38996124]
[1737911839665,0.03,256.35,256.34,26.29096124]
[1737911842357,0.03,256.35,256.34,22.38996124]
[1737911842659,0.03,256.35,256.34,2.0]
[1737911842844,0.03,256.35,256.34,2.39001978]
[1737911843855,0.03,256.35,256.34,26.16690378]
[1737911844265,0.0001,256.35,256.34,242.56690378]
[1737911844569,0.0001,256.35,256.34,241.176884]
[1737911844852,0.0001,256.35,256.34,242.176884]
[1737911845933,0.0001,256.35,256.34,247.13708348]
[1737911847363,0.0001,256.35,256.34,248.13708348]
[1737911855944,0.0001,256.35,256.34,252.03808348]
[1737911866019,0.0001,256.35,256.34,227.26119948]
[1737911866223,0.0001,256.35,256.34,217.4]
[1737911871009,0.0001,256.35,256.34,82.7]
[1737911882933,0.0001,256.35,256.34,86.601]
[1737911886427,0.0001,256.35,256.34,82.7]
[1737911904931,0.0001,256.35,256.34,86.601]
[1737911907258,0.0001,256.35,256.34,82.7]
[1737911917762,0.0001,256.35,256.34,2.0]
[1737911919666,0.0001,256.35,256.34,1.0]
[1737911920667,0.0001,256.35,256.34,2.0]
[1737911929488,0.0001,256.35,256.34,1.0]
[1737911931178,0.0001,256.35,256.33,0.063]
[1737911931777,0.0001,256.35,256.34,1.0]
[1737911934398,0.0001,256.35,256.33,1.063]
[1737911934764,5.14031286,256.34,256.33,1.063]
[1737911936180,5.14031286,256.34,256.33,0.063]
[1737911940591,9.04131286,256.34,256.33,0.063]
[1737911941095,5.14031286,256.34,256.33,0.063]
[1737911944128,5.14031286,256.34,256.33,1.063]
[1737911944289,0.0001,256.35,256.34,1.0]
[1737911959193,0.0001,256.35,256.33,134.763]
[1737911959502,5.14031286,256.34,256.33,134.763]
[1737911959713,5.14031286,256.34,256.33,0.063]
[1737911961195,9.04131286,256.34,256.33,0.063]
[1737911965909,32.81819686,256.34,256.33,0.063]
[1737911967118,33.00128408,256.34,256.33,0.063]
[1737911968605,23.776884,256.33,256.32,0.063]
[1737911968994,29.10028408,256.33,256.32,0.063]
[1737911972310,33.00148408,256.33,256.32,0.063]
[1737911974515,25.32340008,256.31,256.21,1.0]
[1737911974693,5.32340008,256.22,256.21,1.0]
[1737911978116,5.32340008,256.24,256.23,2.0]
[1737911978426,5.32340008,256.28,256.25,1.0]
[1737911979619,5.32340008,256.26,256.25,1.0]
[1737911979821,9.22570008,256.26,256.2,134.7]
[1737911980004,5.32340008,256.21,256.2,134.7]
[1737911980195,5.32340008,256.21,256.19,1.0]
[1737911982122,5.32340008,256.21,256.18,1.063]
[1737911982123,9.22650008,256.21,256.18,0.063]
[1737911982314,5.32340008,256.19,256.18,0.063]
[1737911984123,9.22670008,256.19,256.18,0.063]
[1737911988131,5.32340008,256.2,256.18,0.063]
[1737911988339,5.32340008,256.2,256.18,1.063]
[1737911990530,5.32340008,256.2,256.18,0.063]
[1737911990734,1.0,256.11,256.02,0.03]
[1737911990937,5.32340008,256.09,256.02,0.03]
[1737911992025,9.22820008,256.09,256.02,0.03]
[1737911992221,35.00508408,256.09,256.02,0.03]
[1737911993028,34.00508408,256.09,256.02,0.03]
[1737911994236,35.00508408,256.09,256.02,0.03]
[1737911995428,22.0,256.06,256.02,0.03]
[1737911995629,8.18340008,256.05,256.02,0.03]
[1737911996929,21.0,256.02,256.0,0.03]
[1737911997136,29.10028408,256.01,256.0,0.03]
[1737911997335,33.00628408,256.01,256.0,0.03]
[1737911997518,9.22940008,256.01,256.0,0.03]
[1737912000636,5.32340008,256.01,256.0,0.03]
[1737912000847,9.22940008,256.01,256.0,0.03]
[1737912003177,5.32340008,256.01,256.0,0.03]
[1737912005023,5.32340008,256.05,256.0,215.43]
[1737912006622,5.32340008,256.03,256.0,215.43]
[1737912007840,5.32340008,256.01,256.0,215.43]
[1737912010759,5.32340008,256.01,256.0,80.73]
[1737912014351,0.03,256.02,256.0,80.73]
[1737912016557,0.03,256.02,256.0,215.43]
[1737912028882,0.03,256.02,256.0,219.3362]
[1737912030283,0.03,256.02,256.01,0.39053063]
[1737912032592,0.03,256.02,256.01,215.79053063]
[1737912032764,0.03,256.02,256.01,215.4]
[1737912034056,0.03,256.02,256.01,219.306]
[1737912035789,0.03,256.02,256.01,219.369]
[1737912039079,0.03,256.02,256.01,215.463]
[1737912048143,0.03,256.02,256.01,219.369]
[1737912050586,0.03,256.02,256.01,215.463]
[1737912055487,0.03,256.02,256.01,219.369]
[1737912055791,0.03,256.02,256.01,215.463]
[1737912076199,0.03,256.02,256.01,219.369]
[1737912083987,0.03,256.02,256.01,215.463]
[1737912084808,0.03,256.02,256.01,80.763]
[1737912090814,0.03,256.02,256.01,0.063]
[1737912092895,0.03,256.02,256.01,0.45354824]
[1737912094627,0.03,256.02,256.01,0.063]
[1737912096929,0.03,256.02,256.01,215.463]
[1737912098216,0.03,256.02,256.01,239.239884]
[1737912106709,0.03,256.02,256.01,240.239884]
[1737912107126,0.03,256.02,256.01,239.239884]
[1737912110715,0.0001,256.02,256.01,239.239884]
[1737912111044,0.0001,256.02,256.01,240.239884]
[1737912111233,0.0001,256.02,256.01,244.145884]
[1737912117138,0.0001,256.02,256.01,243.145884]
[1737912121245,0.0001,256.02,256.01,219.369]
[1737912122046,0.0001,256.02,256.01,243.145884]
[1737912127550,0.0001,256.02,256.01,219.369]
[1737912128128,0.0001,256.02,256.01,243.145884]
[1737912129249,0.0001,256.02,256.01,219.369]
[1737912129444,0.0001,256.02,256.01,215.463]
[1737912135372,0.0001,256.02,256.01,80.763]
[1737912135541,0.0001,256.02,256.01,0.063]
[1737912135741,1.5069,256.02,256.01,0.063]
[1737912136844,20.0,256.01,256.0,0.03]
[1737912137049,9.22940008,256.01,256.0,0.03]
[1737912139572,34.00628408,256.01,256.0,0.03]
[1737912139941,1.0,255.99,255.98,0.03]
[1737912140257,28.1355,255.96,255.92,0.063]
[1737912140457,33.45890008,255.96,255.92,0.063]
[1737912140856,57.23578408,255.96,255.92,0.063]
[1737912141473,61.14258408,255.96,255.92,0.063]
[1737912144473,37.36570008,255.96,255.92,0.063]
[1737912144678,33.45890008,255.96,255.92,0.063]
[1737912146478,26.83020008,255.96,255.92,0.063]
[1737912151978,5.32340008,255.97,255.92,0.063]
[1737912152150,5.32340008,255.97,255.92,3.9704]
[1737912152347,5.32340008,255.97,255.92,0.063]
[1737912152573,5.32340008,255.97,255.93,3.9072]
[1737912153280,5.32340008,255.97,255.92,0.063]
[1737912153453,5.32340008,255.97,255.92,3.9704]
[1737912154453,5.32340008,255.97,255.92,0.063]
[1737912154652,5.32340008,255.97,255.93,3.9072]
[1737912155603,5.32340008,255.97,255.92,0.063]
[1737912155756,5.32340008,255.97,255.94,3.907]
[1737912158783,5.32340008,255.97,255.94,3.9071]
[1737912159264,5.32340008,255.97,255.95,3.9699]
[1737912159958,5.32340008,255.97,255.95,0.063]
[1737912168278,5.32340008,255.97,255.95,3.97]
[1737912168468,5.32340008,255.99,255.95,3.97]
[1737912169908,5.35340008,256.01,255.95,3.97]
[1737912170198,0.03,256.01,255.95,219.37]
[1737912174787,0.03,256.01,255.95,229.1375]
[1737912174994,0.03,256.01,255.96,0.39061268]
[1737912175491,0.03,256.01,255.96,215.79061268]
[1737912175684,0.03,256.01,255.96,215.4]
[1737912175887,0.03,256.01,255.97,0.39054615]
[1737912176393,0.03,256.01,255.98,3.9065]
[1737912176565,0.03,256.01,255.99,0.39054612]
[1737912178077,0.03,256.01,256.0,3.9062]
[1737912179392,0.03,256.01,256.0,243.083084]
[1737912180089,0.03,256.01,256.0,244.618184]
[1737912183796,0.03,256.01,256.0,220.8413]
[1737912185072,0.03,256.01,256.0,219.3062]
[1737912194313,0.0001,256.02,256.0,243.083084]
[1737912194509,0.0001,256.02,256.01,25.16733193]
[1737912197706,0.0001,256.02,256.01,240.56733193]
[1737912197915,0.0001,256.02,256.01,240.176884]
[1737912200211,0.0001,256.02,256.01,241.840084]
[1737912203203,5.32340008,256.19,256.05,43.776884]
[1737912203405,6.87460008,256.2,256.06,0.39036004]
[1737912203923,6.87460008,256.2,256.09,20.0]
[1737912204137,1.5512,256.2,256.1,0.39034758]
[1737912205413,1.5512,256.2,256.11,3.9045]
[1737912205619,1.5512,256.2,256.12,0.39034737]
[1737912207506,1.5512,256.2,256.12,4.29464737]
[1737912208116,5.32340008,256.17,256.11,215.4]
[1737912208324,5.32340008,256.15,256.11,215.4]
[1737912210523,5.32340008,256.17,256.11,215.4]
[1737912211840,0.03,256.2,256.14,20.0]
[1737912212001,0.03,256.2,256.15,0.39031803]
[1737912213664,0.03,256.2,256.16,3.9038]
[1737912213839,0.03,256.2,256.17,0.39028466]
[1737912214037,0.03,256.2,256.17,215.79028466]
[1737912214236,0.03,256.2,256.17,215.4]
[1737912216127,5.32340008,256.19,256.17,215.4]
[1737912216830,9.22680008,256.19,256.17,215.4]
[1737912218458,9.22680008,256.19,256.1,215.4]
[1737912218657,5.32340008,256.16,256.1,215.4]
[1737912226374,5.32340008,256.16,256.1,219.3047]
[1737912227475,5.32340008,256.14,256.1,215.4]
[1737912228049,5.32340008,256.12,256.1,80.7]
[1737912232479,5.32340008,256.11,256.1,80.7]
[1737912233268,5.32340008,256.11,256.08,134.7]
[1737912233455,5.32340008,256.09,256.08,134.7]
[1737912237571,9.22810008,256.1,256.08,134.7]
[1737912237758,5.32340008,256.09,256.08,134.7]
[1737912238375,5.32340008,256.09,256.03,215.4]
[1737912238572,5.32340008,256.08,256.03,215.4]
[1737912239878,5.32340008,256.09,256.03,215.4]
[1737912240376,5.32340008,256.1,256.03,215.4]
[1737912241073,9.22810008,256.1,256.03,215.4]
[1737912246965,9.25810008,256.1,256.03,215.4]
[1737912257084,7.73113148,256.1,256.03,215.4]
[1737912262306,5.32340008,256.06,256.03,215.4]
[1737912262472,5.32340008,256.04,256.03,215.4]
[1737912262983,5.32340008,256.04,256.03,80.7]
[1737912263386,5.32340008,256.04,256.02,0.063]
[1737912264493,3.9057,256.03,256.02,0.063]
[1737912269098,29.22910008,256.03,256.02,0.063]
[1737912269288,23.776884,256.02,256.01,0.063]
[1737912270496,10.22910008,256.03,256.01,0.063]
[1737912270704,20.0,256.02,256.01,0.063]
[1737912271199,22.82,256.02,256.01,0.063]
[1737912274076,23.82,256.02,256.01,0.063]
[1737912274391,2.82,256.02,256.01,0.063]
[1737912276302,27.596884,256.02,256.01,0.063]
[1737912277697,31.502784,256.02,256.01,0.063]
[1737912277911,31.502784,256.02,256.01,0.0001]
[1737912278475,43.776884,255.99,255.98,0.0001]
[1737912278704,50.10028408,255.99,255.98,0.0001]
[1737912279807,54.00668408,255.99,255.98,0.0001]
[1737912280005,53.00668408,255.99,255.98,0.0001]
[1737912281599,5.32340008,255.99,255.98,0.0001]
[1737912283715,43.776884,255.96,255.95,0.063]
[1737912283892,49.10028408,255.96,255.95,0.063]
[1737912285011,53.00708408,255.96,255.95,0.063]
[1737912285215,20.0,255.92,255.84,134.7]
[1737912285509,5.32340008,255.86,255.76,219.3728]
[1737912286586,9.23180008,255.86,255.76,219.3728]
[1737912286783,9.23180008,255.86,255.76,0.063]
[1737912287013,5.32340008,255.82,255.76,0.063]
[1737912288394,1.0,255.9,255.76,0.063]
[1737912288395,5.32340008,255.8,255.76,0.063]
[1737912292530,5.32340008,255.77,255.76,0.063]
[1737912294625,25.32340008,255.74,255.72,0.063]
[1737912297154,29.23360008,255.74,255.72,0.063]
[1737912297530,25.32340008,255.74,255.72,0.063]
[1737912298910,28.687184,255.73,255.72,0.063]
[1737912300306,27.687184,255.73,255.72,0.063]
[1737912301334,28.687184,255.73,255.72,0.063]
[1737912304911,5.32340008,255.74,255.72,0.063]
[1737912307146,5.35340008,255.76,255.72,0.063]
[1737912309367,5.32340008,255.74,255.72,0.063]
[1737912314153,5.35340008,255.76,255.72,0.063]
[1737912315547,20.0,255.73,255.72,0.063]